Workbook

Sheet Tutti
D2: DIREZIONE LAVORI ANTINCENDIO vers. 2026 | J2: indice Istat
D3: Inserire i valori Istat attuali nelle celle verdi qui a lato. | J3: anno 1995 | K3: gennaio 2026
D4: Solo le celle verdi, arancioni ed azzurre sono attive, tutte le altre sono bloccate | J4: 100 | K4: 121.8
D5: Inserire l'estensione della area o degli elementi nella cella verde: si otterrà una stima del CP, scegliere se vi è collaudo tecnico funzionale per DM 37/08* nella cella arancione | I5: Inserire Valore V a consuntivo nella cella blu: si avrà il CP corrispondente, scegliere se vi è collaudo tecnico funzionale per DM 37/08*cella arancione
B6: IMPIANTI | D6: IMPIANTI EFC | E6: m2 | F6: Superfice servita | G6: V | H6: CP | I6: VALORE consuntivo | J6: CP
F7: importo stima | G7: =IMPIANTI!B5 -> 0 | H7: =IF(F8="si",IMPIANTI!B8,IMPIANTI!D8) -> 0 | J7: =IF(F8="si",IMPIANTI!C8,IMPIANTI!E8) -> 0 | K7: MAX CP | L7: =MAX(H7,J7) -> 0
D8: collaudo tecnico funzionale DM 37/08* | F8: si
D10: IMPIANTI IRAI | E10: m2 | F10: Superfice servita | G10: V | H10: CP | I10: VALORE consuntivo | J10: CP
F11: importo stima | G11: =IMPIANTI!B13 -> 0 | H11: =IF(F12="si",IMPIANTI!B16,IMPIANTI!D16) -> 0 | J11: =IF(F12="si",IMPIANTI!C16,IMPIANTI!E16) -> 0 | K11: MAX CP | L11: =MAX(H11,J11) -> 0
D12: collaudo tecnico funzionale DM 37/08* | F12: si
D14: IMPIANTI EVAC | E14: m2 | F14: Superfice servita | G14: V | H14: CP | I14: VALORE consuntivo | J14: CP
F15: importo stima | G15: =IMPIANTI!B21 -> 0 | H15: =IF(F16="si",IMPIANTI!B24,IMPIANTI!D24) -> 0 | J15: =IF(F16="si",IMPIANTI!C24,IMPIANTI!E24) -> 0 | K15: MAX CP | L15: =MAX(H15,J15) -> 0
D16: collaudo tecnico funzionale DM 37/08* | F16: si
D18: G.ELETTROGENO | E18: kVA | F18: Potenza fornita | G18: V | H18: CP | I18: VALORE consuntivo | J18: CP
F19: importo stima | G19: =IMPIANTI!B29 -> 0 | H19: =IF(F20="si",IMPIANTI!B32,IMPIANTI!D32) -> 0 | J19: =IF(F20="si",IMPIANTI!C32,IMPIANTI!E32) -> 0 | K19: MAX CP | L19: =MAX(H19,J19) -> 0
D20: collaudo tecnico funzionale DM 37/08* | F20: si
D22: FOTOVOLTAICO | E22: kW | F22: Potenza fornita | G22: V | H22: CP | I22: VALORE consuntivo | J22: CP
F23: importo stima | G23: =IMPIANTI!B37 -> 0 | H23: =IF(F24="si",IMPIANTI!B40,IMPIANTI!D40) -> 0 | J23: =IF(F24="si",IMPIANTI!C40,IMPIANTI!E40) -> 0 | K23: MAX CP | L23: =MAX(H23,J23) -> 0
D24: collaudo tecnico funzionale DM 37/08* | F24: si
B26: IMPIANTI IDRICI | D26: IDRANTI | E26: n erogatori | F26: UNI 45 UNI 70, AA | G26: V | H26: CP | I26: VALORE consuntivo | J26: CP
E27: 15 | F27: importo stima | G27: =IDRICI!B6 -> 27658.53659 | H27: =IF(F28="si",IDRICI!B9,IDRICI!D9) -> 1440.015636 | I27: 22000 | J27: =IF(F28="si",IDRICI!C9,IDRICI!E9) -> 1185.471534 | K27: MAX CP | L27: =MAX(H27,J27) -> 1440.015636
D28: collaudo tecnico funzionale DM 37/08* | F28: no
D30: SPK soffitto LH | E30: m2 | F30: Superfice protetta | G30: V | H30: CP | I30: VALORE consuntivo | J30: CP
F31: importo stima | G31: =IDRICI!B17 -> 0 | H31: =IF(F32="si",IDRICI!B20,IDRICI!D20) -> 0 | J31: =IF(F32="si",IDRICI!C20,IDRICI!E20) -> 0 | K31: MAX CP | L31: =MAX(H31,J31) -> 0
D32: collaudo tecnico funzionale DM 37/08* | F32: si
D34: SPK soffitto OH | E34: m2 | F34: Superfice protetta | G34: V | H34: CP | I34: VALORE consuntivo | J34: CP
F35: importo stima | G35: =IDRICI!B28 -> 0 | H35: =IF(F36="si",IDRICI!B31,IDRICI!D31) -> 0 | J35: =IF(F36="si",IDRICI!C31,IDRICI!E31) -> 0 | K35: MAX CP | L35: =MAX(H35,J35) -> 0
D36: collaudo tecnico funzionale DM 37/08* | F36: si
D38: SPK soffitto HH | E38: m2 | F38: Superfice protetta | G38: V | H38: CP | I38: VALORE consuntivo | J38: CP
F39: importo stima | G39: =IDRICI!B39 -> 0 | H39: =IF(F40="si",IDRICI!B42,IDRICI!D42) -> 0 | J39: =IF(F40="si",IDRICI!C42,IDRICI!E42) -> 0 | K39: MAX CP | L39: =MAX(H39,J39) -> 0
D40: collaudo tecnico funzionale DM 37/08* | F40: si
D42: SPK soffitto ESFR | E42: m2 | F42: Superfice protetta | G42: V | H42: CP | I42: VALORE consuntivo | J42: CP
F43: importo stima | G43: =IDRICI!B50 -> 0 | H43: =IF(F44="si",IDRICI!B53,IDRICI!D53) -> 0 | J43: =IF(F44="si",IDRICI!C53,IDRICI!E53) -> 0 | K43: MAX CP | L43: =MAX(H43,J43) -> 0
D44: collaudo tecnico funzionale DM 37/08* | F44: si
D46: SPK nei Rack | E46: n. | F46: Pallets | G46: V | H46: CP | I46: VALORE consuntivo | J46: CP
F47: importo stima | G47: =IDRICI!B58 -> 0 | H47: =IF(F48="si",IDRICI!B61,IDRICI!D61) -> 0 | J47: =IF(F48="si",IDRICI!C61,IDRICI!E61) -> 0 | K47: MAX CP | L47: =MAX(H47,J47) -> 0
D48: collaudo tecnico funzionale DM 37/08* | F48: si
D50: Gruppi pompe | E50: m3/h | F50: valori > 50 m3/h | G50: V | H50: CP | I50: VALORE consuntivo | J50: CP
D51: 1 endo + elet + jockey | F51: importo stima | G51: =IDRICI!B66 -> 0 | H51: =IF(F52="si",IDRICI!B69,IDRICI!D69) -> 0 | J51: =IF(F52="si",IDRICI!C69,IDRICI!E69) -> 0 | K51: MAX CP | L51: =MAX(H51,J51) -> 0
D52: collaudo tecnico funzionale DM 37/08* | F52: si
D54: Gruppi pompe | E54: m3/h | F54: valori > 50 m3/h | G54: V | H54: CP | I54: VALORE consuntivo | J54: CP
D55: 2 endo + jockey | F55: importo stima | G55: =IDRICI!B74 -> 0 | H55: =IF(F56="si",IDRICI!B77,IDRICI!D77) -> 0 | J55: =IF(F56="si",IDRICI!C77,IDRICI!E77) -> 0 | K55: MAX CP | L55: =MAX(H55,J55) -> 0
D56: collaudo tecnico funzionale DM 37/08* | F56: si
D58: Serbatoi idrici | E58: m3 | F58: valori > 100 m3 | G58: V | H58: CP | I58: VALORE consuntivo | J58: CP
D59: cilindrici esterni | F59: importo stima | G59: =IDRICI!B82 -> 0 | H59: =IF(F60="si",IDRICI!B85,IDRICI!D85) -> 0 | J59: =IF(F60="si",IDRICI!C85,IDRICI!E85) -> 0 | K59: MAX CP | L59: =MAX(H59,J59) -> 0
D60: collaudo tecnico funzionale DM 37/08* | F60: si
B62: PROTEZIONE PASSSIVA | D62: STRUTTURE REI | E62: n. | F62: Elementi strutturali | G62: V | H62: CP | I62: VALORE consuntivo | J62: CP
D63: VERIFICA POSA | F63: importo stima | G63: =PASSIVA!B5 -> 0 | H63: =PASSIVA!B8 -> 0 | J63: =PASSIVA!C8 -> 0 | K63: MAX CP | L63: =MAX(H63,J63) -> 0
D65: PARETI REI | E65: m2 | F65: Superfice protetta | G65: V | H65: CP | I65: VALORE consuntivo | J65: CP
F66: importo stima | G66: =PASSIVA!B13 -> 0 | H66: =PASSIVA!B16 -> 0 | J66: =PASSIVA!C16 -> 0 | K66: MAX CP | L66: =MAX(H66,J66) -> 0
D68: SOFFITTI REI | E68: m2 | F68: Superfice protetta | G68: V | H68: CP | I68: VALORE consuntivo | J68: CP
F69: importo stima | G69: =PASSIVA!B21 -> 0 | H69: =PASSIVA!B24 -> 0 | J69: =PASSIVA!C24 -> 0 | K69: MAX CP | L69: =MAX(H69,J69) -> 0
D71: PORTE REI | E71: n | F71: Numero porte | G71: V | H71: CP | I71: VALORE consuntivo | J71: CP
F72: importo stima | G72: =PASSIVA!B29 -> 0 | H72: =PASSIVA!B32 -> 0 | J72: =PASSIVA!C32 -> 0 | K72: MAX CP | L72: =MAX(H72,J72) -> 0
D74: TRANSITI | E74: n | F74: Numero sigillature | G74: V | H74: CP | I74: VALORE consuntivo | J74: CP
D75: SIGILLATURE | F75: importo stima | G75: =PASSIVA!B37 -> 0 | H75: =PASSIVA!B40 -> 0 | J75: =PASSIVA!C40 -> 0 | K75: MAX CP | L75: =MAX(H75,J75) -> 0
D77: TRANSITI | E77: n | F77: Numero manicotti | G77: V | H77: CP | I77: VALORE consuntivo | J77: CP
D78: MANICOTTI | F78: importo stima | G78: =PASSIVA!B45 -> 0 | H78: =PASSIVA!B48 -> 0 | J78: =PASSIVA!C48 -> 0 | K78: MAX CP | L78: =MAX(H78,J78) -> 0
D80: PROTEZIONI REI | E80: m2 | F80: Superfice protetta | G80: V | H80: CP | I80: VALORE consuntivo | J80: CP
F81: importo stima | G81: =PASSIVA!B53 -> 0 | H81: =PASSIVA!B56 -> 0 | J81: =PASSIVA!C56 -> 0 | K81: MAX CP | L81: =MAX(H81,J81) -> 0
D83: REAZIONE | E83: m2 | F83: Superfice protetta | G83: V | H83: CP | I83: VALORE consuntivo | J83: CP
D84: Alberghi, Biblioteca, Manut.Straord, Hotel, Uffici. | F84: importo stima | G84: =PASSIVA!B62 -> 0 | H84: =PASSIVA!B65 -> 0 | J84: =PASSIVA!C65 -> 0 | K84: MAX CP | L84: =MAX(H84,J84) -> 0
D86: REAZIONE | E86: m2 | F86: Superfice protetta | G86: V | H86: CP | I86: VALORE consuntivo | J86: CP
D87: Edifici civ., Negozi, Supermer, Pensioni, Residenze | F87: importo stima | G87: =PASSIVA!B71 -> 0 | H87: =PASSIVA!B74 -> 0 | J87: =PASSIVA!C74 -> 0 | K87: MAX CP | L87: =MAX(H87,J87) -> 0
D89: REAZIONE | E89: m2 | F89: Superfice protetta | G89: V | H89: CP | I89: VALORE consuntivo | J89: CP
D90: Sanità | F90: importo stima | G90: =PASSIVA!B79 -> 0 | H90: =PASSIVA!B82 -> 0 | J90: =PASSIVA!C82 -> 0 | K90: MAX CP | L90: =MAX(H90,J90) -> 0
B92: PROTEZIONE ATTIVA | D92: PORTE REI | E92: n | F92: Numero porte | G92: V | H92: CP | I92: VALORE consuntivo | J92: CP
D93: CHIUSURA Irai | F93: importo stima | G93: =ATTIVA!B5 -> 0 | H93: =IF(F94="si",ATTIVA!B8,ATTIVA!D8) -> 0 | J93: =IF(F94="si",ATTIVA!C8,ATTIVA!E8) -> 0 | K93: MAX CP | L93: =MAX(H93,J93) -> 0
D94: collaudo tecnico funzionale DM 37/08* | F94: si
D96: SERRANDE EI | E96: n | F96: Numero serrande | G96: V | H96: CP | I96: VALORE consuntivo | J96: CP
D97: Motorizzate | F97: importo stima | G97: =ATTIVA!B13 -> 0 | H97: =IF(F98="si",ATTIVA!B16,ATTIVA!D16) -> 0 | J97: =IF(F98="si",ATTIVA!C16,ATTIVA!E16) -> 0 | K97: MAX CP | L97: =MAX(H97,J97) -> 0
D98: collaudo tecnico funzionale DM 37/08* | F98: si
G100: PREVENT. | H100: =SUM(H7:H99) -> 1440.015636 | I100: CONSUNTIVO | J100: =SUM(J7:J99) -> 1185.471534 | K100: MAX | L100: =SUM(L7:L99) -> 1440.015636
B102: ONERI DISCREZIONALI
D103: Trasferta ed oneri viaggio -valore minimo | G103: =200*K4/118.9 -> 204.8780488 | H103: 0 | L103: =IF(L100=0,0,MAX(G103,H103)) -> 204.8780488
D105: Predisposzione documentazione amministrativa, inoltro e
D106: alla Committenza -valore minimo | G106: =300*K4/118.9 -> 307.3170732 | H106: 0 | L106: =IF(L100=0,0,MAX(G106,H106)) -> 307.3170732
G108: TOTALE PREVENT. | H108: =SUM(H100:H106) -> 1440.015636 | I108: TOTALE CONSUTIVO CP | J108: =J100+L103+L106 -> 1697.666656 | K108: TOTALE MAX CP | L108: =L100+L103+L106 -> 1952.210758
B110: * Il Corrispettivo CP si riferisce per appalti pubblici – nei limiti della soglia prevista dal Dlgs 36/2023 - in cui, in assenza di contenzioso tra Impresa
B111: appaltatrice e/o altri soggetti coinvolti e il Direttore dei lavori, quest'ultimo potrà emettere il “Certificato di regolare esecuzione” (CRE), quale documento
B112: documento ufficiale che attesta la corretta esecuzione di uno specifico appalto di lavori pubblici, servizi e/o forniture.
B114: CP.F2.VVF.2026.xlsm: Milano: documento approvato nel 2023 dalla Commissione Sicurezza Antincendio dell’Ordine Ingegneri di Milano; approvato nel 2023 dalla Commissione Pareri dell'Ordine Ingegneri di Milano e adottato dal Consiglio Ordine Ingegneri di Milano nella seduta del 17.1.2024. Aggiornamento 2025 deliberato nella riunione del Consiglio Ordine Ingegneri di Milano il 7.5.2025 e successivamente nella seduta del 26.11.2025 con approvazione del 23.12.2025.

Sheet IDRICI (hidden)
A1: coef. Agg. Istat. | B1: =Tutti!K4/118.9 -> 1.024390244
A2: IDRANTI | B2: n
B4: =Tutti!E27 -> 15
A5: V unitario | B5: =IF(B4<10,2000,IF(B4<20, 1800,1500)) -> 1800
A6: V totale | B6: =B5*B4*B1 -> 27658.53659 | C6: =Tutti!I27 -> 22000
A7: G | B7: ='Tabella 4'!P20 -> 0.3552 | C7: ='Tabella 4'!P19 -> 0.2112
A8: P | B8: =IF(B6<25000,0.03+10/(25000^0.4),0.03+10/(B6^0.4)) -> 0.1972123386 | C8: =IF(C6<25000,0.03+10/(25000^0.4),0.03+10/(C6^0.4)) -> 0.2041101127 | D8: no collaudo
A9: CP | B9: =B6*B7*B8*1.25 -> 2421.844479 | C9: =C6*B7*B8*1.25 -> 1926.370123 | D9: =B6*C7*B8*1.25 -> 1440.015636 | E9: =C6*C7*C8*1.25 -> 1185.471534
A11: SPK soffitto LH | B11: mq
B12: =Tutti!E31 -> 0
A13: Staz.Contr. | B13: =IF(B12=0,0,IF(B12<10000,1,INT(B12/10000+0.9))) -> 0
A14: V tot.Staz.Contr. | B14: =B13*5000 -> 0
A15: V unitario SPK | B15: 200
A16: V totale SPK | B16: =B12/20*B15 -> 0
A17: V totale SC+ SPK | B17: =(B16+B14)*B1 -> 0 | C17: =Tutti!I31 -> 0
A18: G | B18: ='Tabella 4'!P20 -> 0.3552 | C18: ='Tabella 4'!P19 -> 0.2112
A19: P | B19: =IF(B17<25000,0.03+10/(25000^0.4),0.03+10/(B17^0.4)) -> 0.2041101127 | C19: =IF(C17<25000,0.03+10/(25000^0.4),0.03+10/(C17^0.4)) -> 0.2041101127 | D19: no collaudo
A20: CP | B20: =B17*B18*B19*1.25 -> 0 | C20: =C17*B18*C19*1.25 -> 0 | D20: =B17*C18*B19*1.25 -> 0 | E20: =C17*C18*C19*1.25 -> 0
A22: SPK soffitto OH | B22: mq
B23: =Tutti!E35 -> 0
A24: Staz.Contr. | B24: =IF(B23=0,0,IF(B23<10000,1,INT(B23/10000+0.9))) -> 0
A25: V tot.Staz.Contr. | B25: =B24*5000 -> 0
A26: V unitario SPK | B26: 200
A27: V totale SPK | B27: =B23/12*B26 -> 0
A28: V totale SC+ SPK | B28: =(B27+B25)*B1 -> 0 | C28: =Tutti!I35 -> 0
A29: G | B29: ='Tabella 4'!P20 -> 0.3552 | C29: ='Tabella 4'!P19 -> 0.2112
A30: P | B30: =IF(B28<25000,0.03+10/(25000^0.4),0.03+10/(B28^0.4)) -> 0.2041101127 | C30: =IF(C28<25000,0.03+10/(25000^0.4),0.03+10/(C28^0.4)) -> 0.2041101127 | D30: no collaudo
A31: CP | B31: =B28*B29*B30*1.25 -> 0 | C31: =C28*B29*C30*1.25 -> 0 | D31: =B28*C29*B30*1.25 -> 0 | E31: =C28*C29*C30*1.25 -> 0
A33: SPK soffitto HH | B33: mq
B34: =Tutti!E39 -> 0
A35: Staz.Contr. | B35: =IF(B34=0,0,IF(B34<10000,1,INT(B34/10000+0.9))) -> 0
A36: V tot.Staz.Contr. | B36: =B35*5000 -> 0
A37: V unitario SPK | B37: 200
A38: V totale SPK | B38: =B34/9*B37 -> 0
A39: V totale SC+ SPK | B39: =(B38+B36)*B1 -> 0 | C39: =Tutti!I39 -> 0
A40: G | B40: ='Tabella 4'!P20 -> 0.3552 | C40: ='Tabella 4'!P19 -> 0.2112
A41: P | B41: =IF(B39<25000,0.03+10/(25000^0.4),0.03+10/(B39^0.4)) -> 0.2041101127 | C41: =IF(C39<25000,0.03+10/(25000^0.4),0.03+10/(C39^0.4)) -> 0.2041101127 | D41: no collaudo
A42: CP | B42: =B39*B40*B41*1.25 -> 0 | C42: =C39*B40*C41*1.25 -> 0 | D42: =B39*C40*B41*1.25 -> 0 | E42: =C39*C40*C41*1.25 -> 0
A44: SPK soffitto ESFR | B44: mq
B45: =Tutti!E43 -> 0
A46: Staz.Contr. | B46: =IF(B45=0,0,IF(B45<10000,1,INT(B45/10000+0.9))) -> 0
A47: V tot.Staz.Contr. | B47: =B46*5000 -> 0
A48: V unitario SPK | B48: 250
A49: V totale SPK | B49: =B45/9*B48 -> 0
A50: V totale SC+ SPK | B50: =(B49+B47)*B1 -> 0 | C50: =Tutti!I43 -> 0
A51: G | B51: ='Tabella 4'!P20 -> 0.3552 | C51: ='Tabella 4'!P19 -> 0.2112
A52: P | B52: =IF(B50<25000,0.03+10/(25000^0.4),0.03+10/(B50^0.4)) -> 0.2041101127 | C52: =IF(C50<25000,0.03+10/(25000^0.4),0.03+10/(C50^0.4)) -> 0.2041101127 | D52: no collaudo
A53: CP | B53: =B50*B51*B52*1.25 -> 0 | C53: =C50*B51*C52*1.25 -> 0 | D53: =B50*C51*B52*1.25 -> 0 | E53: =C50*C51*C52*1.25 -> 0
A55: SPK nei Rack | B55: n. pallets
B56: =Tutti!E47 -> 0
A57: V unitario SPK | B57: 100
A58: V totale SPK | B58: =B56*B57*B1 -> 0 | C58: =Tutti!I47 -> 0
A59: G | B59: ='Tabella 4'!P20 -> 0.3552 | C59: ='Tabella 4'!P19 -> 0.2112
A60: P | B60: =IF(B58<25000,0.03+10/(25000^0.4),0.03+10/(B58^0.4)) -> 0.2041101127 | C60: =IF(C58<25000,0.03+10/(25000^0.4),0.03+10/(C58^0.4)) -> 0.2041101127 | D60: no collaudo
A61: CP | B61: =B58*B59*B60*1.25 -> 0 | C61: =C58*B59*C60*1.25 -> 0 | D61: =B58*C59*B60*1.25 -> 0 | E61: =C58*C59*C60*1.25 -> 0
A63: Gruppi pompe | B63: m3/h >50
A64: 1 endo + elet + jokey | B64: =Tutti!E51 -> 0
A66: V totale | B66: =IF(B64<50,0,IF(B64=50,77,IF(B64=450,77+0.185*(B64-50),77+0.24*(B64-50))))*1000 -> 0 | C66: =Tutti!I51 -> 0
A67: G | B67: ='Tabella 4'!P20 -> 0.3552 | C67: ='Tabella 4'!P19 -> 0.2112
A68: P | B68: =IF(B66<25000,0.03+10/(25000^0.4),0.03+10/(B66^0.4)) -> 0.2041101127 | C68: =IF(C66<25000,0.03+10/(25000^0.4),0.03+10/(C66^0.4)) -> 0.2041101127 | D68: no collaudo
A69: CP | B69: =B66*B67*B68*1.25 -> 0 | C69: =C66*B67*C68*1.25 -> 0 | D69: =B66*C67*B68*1.25 -> 0 | E69: =C66*C67*C68*1.25 -> 0
A71: Gruppi pompe | B71: m3/h > 50
A72: 2 endo + jokey | B72: =Tutti!E55 -> 0
A74: V totale | B74: =IF(B72<50,0,IF(B72=50,80,IF(B72=450,80+0.185*(B72-50),80+0.24*(B72-50))))*1000 -> 0 | C74: =Tutti!I55 -> 0
A75: G | B75: ='Tabella 4'!P20 -> 0.3552 | C75: ='Tabella 4'!P19 -> 0.2112
A76: P | B76: =IF(B74<25000,0.03+10/(25000^0.4),0.03+10/(B74^0.4)) -> 0.2041101127 | C76: =IF(C74<25000,0.03+10/(25000^0.4),0.03+10/(C74^0.4)) -> 0.2041101127 | D76: no collaudo
A77: CP | B77: =B74*B75*B76*1.25 -> 0 | C77: =C74*B75*C76*1.25 -> 0 | D77: =B74*C75*B76*1.25 -> 0 | E77: =C74*C75*C76*1.25 -> 0
A79: Serbatoi idrici | B79: m3 > 100
A80: cilindrici esterni | B80: =Tutti!E59 -> 0
A82: V totale | B82: =IF(B80<100,0,IF(B80=100,50,IF(B80=500,87,50+0.092*(B80-100))))*1000 -> 0 | C82: =Tutti!I59 -> 0
A83: G | B83: ='Tabella 4'!P20 -> 0.3552 | C83: ='Tabella 4'!P19 -> 0.2112
A84: P | B84: =IF(B82<25000,0.03+10/(25000^0.4),0.03+10/(B82^0.4)) -> 0.2041101127 | C84: =IF(C82<25000,0.03+10/(25000^0.4),0.03+10/(C82^0.4)) -> 0.2041101127 | D84: no collaudo
A85: CP | B85: =B82*B83*B84*1.25 -> 0 | C85: =C82*B83*C84*1.25 -> 0 | D85: =B82*C83*B84*1.25 -> 0 | E85: =C82*C83*C84*1.25 -> 0

Sheet PASSIVA (hidden)
A1: coef. Agg. Istat. | B1: =Tutti!K4/118.9 -> 1.024390244
A2: STRUTTURE REI | B2: n
A3: VERIFICA POSA | B3: =Tutti!E63 -> 0
A4: Valore unitario | B4: 500
A5: V totale | B5: =B4*B3*B1 -> 0 | C5: =Tutti!I63 -> 0
A6: G | B6: ='Tabella 4'!P24 -> 0.3519
A7: P | B7: =IF(B5<25000,0.03+10/(25000^0.4),0.03+10/(B5^0.4)) -> 0.2041101127 | C7: =IF(C5<25000,0.03+10/(25000^0.4),0.03+10/(C5^0.4)) -> 0.2041101127
A8: CP | B8: =B5*B6*B7*1.25 -> 0 | C8: =C5*B6*C7*1.25 -> 0
A10: PARETI REI | B10: mq
B11: =Tutti!E66 -> 0
A12: Valore unitario | B12: =IF(B11<10,200,IF(B11<100, 100,75)) -> 200
A13: V totale | B13: =B12*B11*B1 -> 0 | C13: =Tutti!I66 -> 0
A14: G | B14: ='Tabella 4'!P24 -> 0.3519
A15: P | B15: =IF(B13<25000,0.03+10/(25000^0.4),0.03+10/(B13^0.4)) -> 0.2041101127 | C15: =IF(C13<25000,0.03+10/(25000^0.4),0.03+10/(C13^0.4)) -> 0.2041101127
A16: CP | B16: =B13*B14*B15*1.25 -> 0 | C16: =C13*B14*C15*1.25 -> 0
A18: SOFFITTI REI | B18: mq
B19: =Tutti!E69 -> 0
A20: Valore unitario | B20: =IF(B19=0,0,IF(B19<100,200,150)) -> 0
A21: V | B21: =B20*B19*B1 -> 0 | C21: =Tutti!I69 -> 0
A22: G | B22: ='Tabella 4'!P24 -> 0.3519
A23: P | B23: =IF(B21<25000,0.03+10/(25000^0.4),0.03+10/(B21^0.4)) -> 0.2041101127 | C23: =IF(C21<25000,0.03+10/(25000^0.4),0.03+10/(C21^0.4)) -> 0.2041101127
A24: CP | B24: =B21*B22*B23*1.25 -> 0 | C24: =C21*B22*C23*1.25 -> 0
A26: PORTE REI | B26: n
B27: =Tutti!E72 -> 0
A28: Valore unitario | B28: =1000 -> 1000
A29: V | B29: =B28*B27*B1 -> 0 | C29: =Tutti!I72 -> 0
A30: G | B30: ='Tabella 4'!P24 -> 0.3519
A31: P | B31: =IF(B29<25000,0.03+10/(25000^0.4),0.03+10/(B29^0.4)) -> 0.2041101127 | C31: =IF(C29<25000,0.03+10/(25000^0.4),0.03+10/(C29^0.4)) -> 0.2041101127
A32: CP | B32: =B29*B30*B31*1.25 -> 0 | C32: =C29*B30*C31*1.25 -> 0
A34: TRANSITI | B34: n
A35: SIGILLATURE | B35: =Tutti!E75 -> 0
A36: Valore unitario | B36: =IF(B35=0,0,IF(B35<10,120,IF(B35<100,60,50))) -> 0
A37: V totale | B37: =B36*B35*B1 -> 0 | C37: =Tutti!I75 -> 0
A38: G | B38: ='Tabella 4'!P24 -> 0.3519
A39: P | B39: =IF(B37<25000,0.03+10/(25000^0.4),0.03+10/(B37^0.4)) -> 0.2041101127 | C39: =IF(C37<25000,0.03+10/(25000^0.4),0.03+10/(C37^0.4)) -> 0.2041101127
A40: CP | B40: =B37*B38*B39*1.25 -> 0 | C40: =C37*B38*C39*1.25 -> 0
A42: TRANSITI | B42: n
A43: MANICOTTI | B43: =Tutti!E78 -> 0
A44: Valore unitario | B44: 200
A45: V totale | B45: =B44*B43*B1 -> 0 | C45: =Tutti!I78 -> 0
A46: G | B46: ='Tabella 4'!P24 -> 0.3519
A47: P | B47: =IF(B45<25000,0.03+10/(25000^0.4),0.03+10/(B45^0.4)) -> 0.2041101127 | C47: =IF(C45<25000,0.03+10/(25000^0.4),0.03+10/(C45^0.4)) -> 0.2041101127
A48: CP | B48: =B45*B46*B47*1.25 -> 0 | C48: =C45*B46*C47*1.25 -> 0
A50: PROTEZIONE REI | B50: mq
B51: =Tutti!E81 -> 0
A52: Valore unitario | B52: 300
A53: V totale | B53: =B52*B51*B1 -> 0 | C53: =Tutti!I81 -> 0
A54: G | B54: ='Tabella 4'!P24 -> 0.3519
A55: P | B55: =IF(B53<25000,0.03+10/(25000^0.4),0.03+10/(B53^0.4)) -> 0.2041101127 | C55: =IF(C53<25000,0.03+10/(25000^0.4),0.03+10/(C53^0.4)) -> 0.2041101127
A56: CP | B56: =B53*B54*B55*1.25 -> 0 | C56: =C53*B54*C55*1.25 -> 0
A58: REAZIONE FUOCO | B58: mq
A59: Alberghi, Biblioteca, Manut.Straord, Hotel, Uffici.
B60: =Tutti!E84 -> 0
A61: Valore unitario | B61: 70
A62: V totale | B62: =B61*B60*B1 -> 0 | C62: =Tutti!I84 -> 0
A63: G | B63: ='Tabella 4'!P38 -> 0.3168
A64: P | B64: =IF(B62<25000,0.03+10/(25000^0.4),0.03+10/(B62^0.4)) -> 0.2041101127 | C64: =IF(C62<25000,0.03+10/(25000^0.4),0.03+10/(C62^0.4)) -> 0.2041101127
A65: CP | B65: =B62*B63*B64*1.25 -> 0 | C65: =C62*B63*C64*1.25 -> 0
A67: REAZIONE FUOCO | B67: mq
A68: Edifici civ., Negozi, Supermer, Pensioni, Residenze
B69: =Tutti!E87 -> 0
A70: Valore unitario | B70: 70
A71: V totale | B71: =B70*B69*B1 -> 0 | C71: =Tutti!I87 -> 0
A72: G | B72: ='Tabella 4'!P45 -> 0.2508
A73: P | B73: =IF(B71<25000,0.03+10/(25000^0.4),0.03+10/(B71^0.4)) -> 0.2041101127 | C73: =IF(C71<25000,0.03+10/(25000^0.4),0.03+10/(C71^0.4)) -> 0.2041101127
A74: CP | B74: =B71*B72*B73*1.25 -> 0 | C74: =C71*B72*C73*1.25 -> 0
A76: REAZIONE FUOCO | B76: mq
A77: SANITA' | B77: =Tutti!E90 -> 0
A78: Valore unitario | B78: 85
A79: V totale | B79: =B78*B77*B1 -> 0 | C79: =Tutti!I90 -> 0
A80: G | B80: ='Tabella 4'!P50 -> 0.3432
A81: P | B81: =IF(B79<25000,0.03+10/(25000^0.4),0.03+10/(B79^0.4)) -> 0.2041101127 | C81: =IF(C79<25000,0.03+10/(25000^0.4),0.03+10/(C79^0.4)) -> 0.2041101127
A82: CP | B82: =B79*B80*B81*1.25 -> 0 | C82: =C79*B80*C81*1.25 -> 0

Sheet ATTIVA (hidden)
A1: coef. Agg. Istat. | B1: =Tutti!K4/118.9 -> 1.024390244
A2: PORTE REI | B2: n
A3: CHIUSURA Irai | B3: =Tutti!E93 -> 0
A4: Valore unitario | B4: 1200
A5: V | B5: =B4*B3*B1 -> 0 | C5: =Tutti!I93 -> 0
A6: G | B6: ='Tabella 4'!P29 -> 0.3996 | C6: ='Tabella 4'!P28 -> 0.2376
A7: P | B7: =IF(B5<25000,0.03+10/(25000^0.4),0.03+10/(B5^0.4)) -> 0.2041101127 | C7: =IF(C5<25000,0.03+10/(25000^0.4),0.03+10/(C5^0.4)) -> 0.2041101127 | D7: no collaudo
A8: CP | B8: =B5*B6*B7*1.25 -> 0 | C8: =C5*B6*C7*1.25 -> 0 | D8: =B5*C6*B7*1.25 -> 0 | E8: =C5*C6*C7*1.25 -> 0
A10: SERRANDE EI | B10: n
B11: =Tutti!E97 -> 0
A12: Valore unitario | B12: 500
A13: V totale | B13: =B12*B11*B1 -> 0 | C13: =Tutti!I97 -> 0
A14: G | B14: ='Tabella 4'!P29 -> 0.3996 | C14: ='Tabella 4'!P28 -> 0.2376
A15: P | B15: =IF(B13<25000,0.03+10/(25000^0.4),0.03+10/(B13^0.4)) -> 0.2041101127 | C15: =IF(C13<25000,0.03+10/(25000^0.4),0.03+10/(C13^0.4)) -> 0.2041101127 | D15: no collaudo
A16: CP | B16: =B13*B14*B15*1.25 -> 0 | C16: =C13*B14*C15*1.25 -> 0 | D16: =B13*C14*B15*1.25 -> 0 | E16: =C13*C14*C15*1.25 -> 0

Sheet IMPIANTI (hidden)
A1: coef. Agg. Istat. | B1: =Tutti!K4/118.9 -> 1.024390244
A2: Impianti EFC | B2: mq
B3: =Tutti!E7 -> 0
A4: V unitario | B4: 10
A5: V totale | B5: =B4*B3*B1 -> 0 | C5: =Tutti!I7 -> 0
A6: G | B6: ='Tabella 4'!P10 -> 0.3774 | C6: ='Tabella 4'!P9 -> 0.2244
A7: P | B7: =IF(B5<25000,0.03+10/(25000^0.4),0.03+10/(B5^0.4)) -> 0.2041101127 | C7: =IF(C5<25000,0.03+10/(25000^0.4),0.03+10/(C5^0.4)) -> 0.2041101127 | D7: no collaudo
A8: CP | B8: =B5*B6*B7*1.25 -> 0 | C8: =C5*B6*C7*1.25 -> 0 | D8: =B5*C6*B7*1.25 -> 0 | E8: =C5*C6*C7*1.25 -> 0
A10: IMPIANTI IRAI | B10: mq
B11: =Tutti!E11 -> 0
A12: Valore unitario | B12: 20
A13: V | B13: =B12*B11*B1 -> 0 | C13: =Tutti!I11 -> 0
A14: G | B14: ='Tabella 4'!P15 -> 0.5772 | C14: ='Tabella 4'!P14 -> 0.3432
A15: P | B15: =IF(B13<25000,0.03+10/(25000^0.4),0.03+10/(B13^0.4)) -> 0.2041101127 | C15: =IF(C13<25000,0.03+10/(25000^0.4),0.03+10/(C13^0.4)) -> 0.2041101127 | D15: no collaudo
A16: CP | B16: =B13*B14*B15*1.25 -> 0 | C16: =C13*B14*C15*1.25 -> 0 | D16: =B13*C14*B15*1.25 -> 0 | E16: =C13*C14*C15*1.25 -> 0
A18: IMPIANTI EVAC | B18: mq
B19: =Tutti!E15 -> 0
A20: Valore unitario | B20: 10
A21: V | B21: =B20*B19*B1 -> 0 | C21: =Tutti!I15 -> 0
A22: G | B22: ='Tabella 4'!P15 -> 0.5772 | C22: ='Tabella 4'!P14 -> 0.3432
A23: P | B23: =IF(B21<25000,0.03+10/(25000^0.4),0.03+10/(B21^0.4)) -> 0.2041101127 | C23: =IF(C21<25000,0.03+10/(25000^0.4),0.03+10/(C21^0.4)) -> 0.2041101127 | D23: no collaudo
A24: CP | B24: =B21*B22*B23*1.25 -> 0 | C24: =C21*B22*C23*1.25 -> 0 | D24: =B21*C22*B23*1.25 -> 0 | E24: =C21*C22*C23*1.25 -> 0
A26: G.ELETTROGENO | B26: kVA
B27: =Tutti!E19 -> 0
E28: =IF(B27<51,B27*400,IF(B27<101,(B27-50)*320+20000,IF(B27<201,(B27-100)*120+36000,99))) -> 0
A29: V | B29: =MAX(E28,E29)*B1 -> 0 | C29: =Tutti!I19 -> 0 | E29: =IF(E28=99,48000+(B27-200)*110,0) -> 0
A30: G | B30: ='Tabella 4'!P10 -> 0.3774 | C30: ='Tabella 4'!P9 -> 0.2244
A31: P | B31: =IF(B29<25000,0.03+10/(25000^0.4),0.03+10/(B29^0.4)) -> 0.2041101127 | C31: =IF(C29<25000,0.03+10/(25000^0.4),0.03+10/(C29^0.4)) -> 0.2041101127 | D31: no collaudo
A32: CP | B32: =B29*B30*B31*1.25 -> 0 | C32: =C29*B30*C31*1.25 -> 0 | D32: =B29*C30*B31*1.25 -> 0 | E32: =C29*C30*C31*1.25 -> 0
A34: IMPIANTI FV | B34: kW
B35: =Tutti!E23 -> 0
A36: Valore unitario | B36: 600
A37: V | B37: =B35*B36*B1 -> 0 | C37: =Tutti!I23 -> 0
A38: G | B38: ='Tabella 4'!P15 -> 0.5772 | C38: ='Tabella 4'!P14 -> 0.3432
A39: P | B39: =IF(B37<25000,0.03+10/(25000^0.4),0.03+10/(B37^0.4)) -> 0.2041101127 | C39: =IF(C37<25000,0.03+10/(25000^0.4),0.03+10/(C37^0.4)) -> 0.2041101127 | D39: no collaudo
A40: CP | B40: =B37*B38*B39*1.25 -> 0 | C40: =C37*B38*C39*1.25 -> 0 | D40: =B37*C38*B39*1.25 -> 0 | E40: =C37*C38*C39*1.25 -> 0

Sheet Tabella 1 (hidden)
A1: Attività parziali
A2: Tabella 1. - Elenco prestazioni Fase 2 e relativo coefficiente Xi del CP compreso oneri DLVVF
A3: % | B3: Passo | K3: si/no si=compresa | L3: Xi | M3: risultante
A4: 0.5 | B4: a) | C4: controllo congruità dei progetti specifici antincendio rispetto al ProgettoVVF | K4: si | L4: 0.5 | M4: 0.5
B5: a.1) | C5: resistenza al fuoco strutture e compartimentazioni
B6: a.2) | C6: reazione al fuoco dei materiali, arredi, rivestimento
B7: a.3) | C7: compartimentazioni, transiti impiantistici
B8: a.4) | C8: percorsi d’esodo, lunghezze Lcc e Les e Les omesso , larghezze, porte EI ecc.
B9: a.5) | C9: rete idranti, impianti automatici di spegnimento
B10: a.6) | C10: IRAI, EVAC,FV
B11: a.7) | C11: EFC
B12: a.8) | C12: Accessibilità VVF
B13: a.9) | C13: Impianti secondo 37/08
A14: 0.5 | B14: b) | C14: controllo correttezza e completezza singoli progetti da a.1) sino a a.9) nella loro realizzazione conforme e con la puntuale verifica della corretta produzione, da parte degli installatori, di: | K14: si | L14: 0.5 | M14: 0.5
B15: b.1) | C15: tavola identificativa dei singoli elementi firmato da Progettista, installatore.
B16: b.2) | C16: CERT.REI per tutti gli elementi con resistenza al fuoco completa degli allegati richiesti dal DM 3.8.2012.
B17: b.3) | C17: DICH.PROD per tutti gli elementi antincendio [previsti ed installati secondo i progetti da a.1) sino a a.9)] completa degli allegati richiesti dal DM 3.8.2012 e del DICH.POSA.
B18: b.4) | C18: DICH.IMP. o CERT.IMP., o DI.CO. 37/08 per tutti gli impianti significativi ai fini antincendio completi di:
C19: l’esatta tipologia dell’impianto, la sua destinazione e collocazione
C20: l’uso previsto, iscrizione C.I.A.A e documento relativo;
C21: nominativo, riferimenti progettista suoi certificati requisiti tecnici;
C22: norme tecniche rispettate;
C23: progetto esecutivo con tavole e relazione a firma del progettista;
C24: relazione contenente tipologia materiali impiegati e schede relative
C25: schema impianto realizzato;
C26: riferimento a precedenti dichiarazioni (Di.Co. o Di.Ri.) od altro;
C27: tavole as built firmate dal progettista e dall’esecutore;
C28: manuale d’uso e manutenzione
A29: 1 | B29: SOMMANO | L29: 1 | M29: 1
A31: 1 | B31: c) | C31: Redazione di collaudo di tutti gli interventi in modo da costituire la base conoscitiva con cui l’Asseveratore (potrebbe anche essere altro Professionista antincendio diverso dalla figura di DLVVF) potrà esprimersi sulla conformità dell’attività ai requisiti di prevenzione incendi e di sicurezza antincendio firmando il modello PIN 2.1. 2018 ASSEVERAZIONE. | K31: si | L31: 1 | M31: 1
A32: 1 | B32: SOMMANO | L32: 1 | M32: 1

Sheet Tabella 2 (hidden)
A1: Gradi di complessità
A2: Tabella 2. - Valori di G
A3: ATTIVITA' | B3: G
A4: alberghi | B4: 1.2 | C4: E.04 | D4: ID. DM 31.10.2013 n.143
A5: biblioteche | B5: 1.2 | C5: E.13
A6: manutez. straordinaria | B6: 1.2 | C6: E.21
A7: negozi | B7: 0.95 | C7: E.03
A8: pensioni, residenze | B8: 0.95 | C8: E.06
A9: hotel, residenze pregiate | B9: 1.2 | C9: E.07
A10: sanità | B10: 1.3 | C10: E.10
A11: strutture speciali | B11: 1.15 | C11: S.06
A12: uffici | B12: 1.2 | C12: E.16
A14: impianti EFC, G.Elettrogeni | B14: 0.85 | C14: IA.02
A15: impianti IRAI,EVAC,FV | B15: 1.3 | C15: IA.04
A16: impianti Idrici antincendio | B16: 0.8 | C16: D.05

Sheet Tabella 3 (hidden)
A1: impianti | B1: Idranti (numero di attacchi autopompa + naspi + UNI 45 + UNI 70)
A2: impianti | B2: Impianti Sprinkler (numero di impianti)
A3: impianti | B3: Lama d'aqua diluvio
A4: impianti | B4: Gruppi di pompaggio (numero di gruppi)
A5: impianti | B5: Serbatoio idrico (numero di serbatoi)
A6: impianti | B6: Impianto EVAC (numero di impianti)
A8: impianti | B8: Impianto rivelazione (numero di impianti)
A9: impianti | B9: Impianto allarme incendio (già compreso nella rivelazione se presente)
A11: Protezione passiva | B11: compartimentazione pareti
A12: Protezione passiva | B12: compartimentazione orizzontale soffitto
A13: Protezione passiva | B13: compartimentazione orizzontale pavimento
A14: Protezione passiva | B14: Porte Tagliafuoco
A15: Protezione passiva | B15: Sigillatura transiti impiantistici, collari ecc.
A16: Protezione attiva | B16: Serranda TF (numero di elementi)
B17: Porte a chiusura automatica sotto IRAI (numero di porte)
B19: Altro impianto (rivelazione gas, efc, ecc..) (numero di impianti)
B20: Gruppo elettrogeno ai fini antincendio (numero di gruppi)
B22: Protezione passiva elemento portante (numero di elementi)

Sheet Tabella 4 (hidden)
B2: DIREZIONE LAVORI ANTINCENDIO
B4: Parametro relativo alla specificità della prestazione
B5: Tabella 3. - Specificità
L6: G | M6: Q DL | N6: % Q DLVVF | O6: Q DLVVF | P6: risultante ΣQDLVVF x G
B7: DM 17.6.2016 | C7: IA.02 | D7: Impianti EFC, G.Elettrogeni | L7: 0.85
C8: Qcl.01 | D8: direzione lavori | M8: 0.32 | N8: 0.7 | O8: =M8*N8 -> 0.224
C9: Qcl.11 | D9: certificato regolare esecuzione | M9: 0.04 | N9: 1 | O9: =M9*N9 -> 0.04 | P9: =SUM(O8:O9)*L7 -> 0.2244
C10: Qdl.04 | D10: collaudo tecnico funzionale | M10: 0.18 | N10: 1 | O10: 0.18 | P10: =SUM(O8:O10)*L7 -> 0.3774
B12: DM 17.6.2016 | C12: IA.04 | D12: Impianti IRAI,EVAC,FV | L12: 1.3
C13: Qcl.01 | D13: direzione lavori | M13: 0.32 | N13: 0.7 | O13: =M13*N13 -> 0.224
C14: Qcl.11 | D14: certificato regolare esecuzione | M14: 0.04 | N14: 1 | O14: =M14*N14 -> 0.04 | P14: =SUM(O13:O14)*L12 -> 0.3432
C15: Qdl.04 | D15: collaudo tecnico funzionale | M15: 0.18 | N15: 1 | O15: 0.18 | P15: =SUM(O13:O15)*L12 -> 0.5772
B17: DM 17.6.2016 | C17: DO.5 | D17: Impianti idrici antincendio | L17: 0.8
C18: Qcl.01 | D18: direzione lavori | M18: 0.32 | N18: 0.7 | O18: =M18*N18 -> 0.224
C19: Qcl.11 | D19: certificato regolare esecuzione | M19: 0.04 | N19: 1 | O19: =M19*N19 -> 0.04 | P19: =SUM(O18:O19)*L17 -> 0.2112
C20: Qdl.04 | D20: collaudo tecnico funzionale | M20: 0.18 | N20: 1 | O20: 0.18 | P20: =SUM(O18:O20)*L17 -> 0.3552
B22: DM 17.6.2016 | C22: S.06 | D22: Elementi strutturali e di compartimentazione passiva | L22: 1.15
C23: Qcl.01 | D23: direzione lavori | M23: 0.38 | N23: 0.7 | O23: =M23*N23 -> 0.266
C24: Qcl.11 | D24: certificato regolare esecuzione | M24: 0.04 | N24: 1 | O24: =M24*N24 -> 0.04 | P24: =SUM(O23:O24)*L22 -> 0.3519
B26: DM 17.6.2016 | C26: S.04 | D26: Elementi di compartimentazione attiva (serrande, porte automatiche ecc) | L26: 0.9
C27: Qcl.01 | D27: direzione lavori | M27: 0.32 | N27: 0.7 | O27: =M27*N27 -> 0.224
C28: Qcl.11 | D28: certificato regolare esecuzione | M28: 0.04 | N28: 1 | O28: =M28*N28 -> 0.04 | P28: =SUM(O27:O28)*L26 -> 0.2376
C29: Qdl.04 | D29: collaudo tecnico funzionale | M29: 0.18 | N29: 1 | O29: 0.18 | P29: =SUM(O27:O29)*L26 -> 0.3996
B31: DM 17.6.2016 | D31: Componenti reazione al fuoco
C32: E.04 | D32: Alberghi
C33: E.13 | D33: Biblioteca
C34: E.21 | D34: Manutenzione straordinaria
C35: E.07 | D35: Hotel
C36: E.16 | D36: Uffici | L36: 1.2
C37: Qcl.01 | D37: direzione lavori | M37: 0.32 | N37: 0.7 | O37: =M37*N37 -> 0.224
C38: Qcl.11 | D38: certificato regolare esecuzione | M38: 0.04 | N38: 1 | O38: =M38*N38 -> 0.04 | P38: =SUM(O37:O38)*L36 -> 0.3168
B40: DM 17.6.2016 | D40: Componenti reazione al fuoco
C41: E.02 | D41: Edifici civili
C42: E.03 | D42: Negozi, supermercati
C43: E.06 | D43: Pensioni, residenze | L43: 0.95
C44: Qcl.01 | D44: direzione lavori | M44: 0.32 | N44: 0.7 | O44: =M44*N44 -> 0.224
C45: Qcl.11 | D45: certificato regolare esecuzione | M45: 0.04 | N45: 1 | O45: =M45*N45 -> 0.04 | P45: =SUM(O44:O45)*L43 -> 0.2508
B47: DM 17.6.2016 | D47: Componenti reazione al fuoco
C48: E.10 | D48: Sanità | L48: 1.3
C49: Qcl.01 | D49: direzione lavori | M49: 0.32 | N49: 0.7 | O49: =M49*N49 -> 0.224
C50: Qcl.11 | D50: certificato regolare esecuzione | M50: 0.04 | N50: 1 | O50: =M50*N50 -> 0.04 | P50: =SUM(O49:O50)*L48 -> 0.3432
B53: Documento approvato nel 2023 dalla Commissione Sicurezza Antincendio dell’Ordine Ingegneri di Milano; approvato nel 2023 dalla Commissione Pareri dell'Ordine Ingegneri di Milano e adottato dal Consiglio Ordine Ingegneri di Milano nella seduta del 17.1.2024.

Sheet si-no (hidden)
A1: si
A2: no
